bitfinex-derivatives/quotes_ETHF0:USTF0_20241129
["timestamp","ask_amount","ask_price","bid_price","bid_amount"]
[1732889340360,3.2078,3610.6,3609.7,0.4539]
[1732889340361,0.27691,3610.0,3609.9,0.27691]
[1732889341163,0.2769,3610.2,3610.1,0.27689]
[1732889341359,5.35306216,3610.6,3609.8,0.69231]
[1732889341560,0.27691,3610.1,3610.0,0.2769]
[1732889341761,0.27689,3610.2,3610.1,0.27689]
[1732889341968,2.14526216,3610.5,3609.7,0.4539]
[1732889342167,0.27689,3610.4,3610.3,0.27688]
[1732889342465,0.2769,3610.2,3610.1,0.27689]
[1732889343264,2.14526216,3610.4,3609.7,0.4539]
[1732889343557,0.27692,3610.0,3609.9,0.2769]
[1732889344575,2.42218216,3610.0,3609.9,0.2769]
[1732889345065,0.27692,3610.0,3609.9,0.2769]
[1732889345261,2.14526216,3610.1,3610.0,0.27691]
[1732889345466,2.14526216,3610.1,3609.8,0.96923]
[1732889345762,5.62995216,3610.2,3610.1,0.2769]
[1732889346066,3.2078,3610.2,3610.1,0.2769]
[1732889346265,5.37814158,3610.2,3610.1,0.2769]
[1732889346464,3.2078,3610.2,3610.1,0.2769]
[1732889346661,2.17094075,3610.2,3609.8,3.90011]
[1732889346966,2.17111286,3610.1,3610.0,0.27691]
[1732889347162,2.17111286,3610.5,3610.0,4.27]
[1732889347364,2.17111286,3610.6,3610.5,0.27687]
[1732889347666,3.23412352,3610.7,3610.5,1.56]
[1732889347864,3.23412352,3610.7,3610.6,0.27686]
[1732889348164,0.27685,3610.7,3610.6,0.27686]
[1732889349563,5.66705587,3610.7,3610.6,0.27686]
[1732889349962,5.39020587,3610.7,3610.6,0.27686]
[1732889350670,5.66705587,3610.7,3610.6,0.27686]
[1732889351162,5.66705587,3610.7,3610.4,0.4186]
[1732889351163,0.27687,3610.5,3610.4,0.4186]
[1732889351364,5.70770851,3610.5,3610.4,0.8786]
[1732889351568,0.27687,3610.5,3610.4,0.46]
[1732889351764,2.37176257,3610.5,3610.4,0.46]
[1732889352966,8.84000961,3610.5,3610.4,0.46]
[1732889353174,8.84000961,3610.5,3609.5,0.4333]
[1732889353175,10.67318078,3610.5,3609.5,0.4333]
[1732889353376,0.27694,3609.6,3609.5,0.4333]
[1732889353675,5.70913691,3609.6,3609.5,0.71024]
[1732889353865,5.70913691,3609.6,3609.5,0.4333]
[1732889354066,5.70913691,3609.6,3609.5,0.71024]
[1732889354866,5.70913691,3609.6,3609.5,0.4333]
[1732889355564,0.27694,3609.6,3609.5,0.4333]
[1732889355967,0.27695,3609.4,3609.3,0.4399]
[1732889356472,4.62276074,3609.4,3609.3,0.71686]
[1732889356667,5.43219691,3609.5,3608.7,0.01551]
[1732889356972,4.62304538,3609.2,3609.1,0.27697]
[1732889357173,4.34607538,3609.2,3609.1,0.27697]
[1732889357563,3.25951977,3609.2,3608.9,0.4246]
[1732889357764,2.17301318,3609.1,3609.0,0.27698]
[1732889359681,2.17301318,3609.1,3609.0,41.07698]
[1732889361878,2.17301318,3609.1,3609.0,44.28478]
[1732889362567,3.25951977,3609.2,3609.1,0.27698]
[1732889362773,3.25951977,3609.3,3609.2,0.27697]
[1732889363477,4.62302538,3609.4,3609.3,0.27696]
[1732889364071,4.62302538,3609.4,3609.0,44.0078]
[1732889364072,0.27698,3609.2,3609.1,0.27697]
[1732889364278,0.27698,3609.2,3608.7,0.29251]
[1732889364279,0.277,3608.8,3608.7,0.29251]
[1732889364484,4.34858038,3608.8,3608.7,0.29252]
[1732889364680,4.34858038,3608.9,3608.8,0.277]
[1732889364877,5.43572548,3609.1,3608.9,0.27699]
[1732889364878,4.34858038,3609.0,3608.9,0.27699]
[1732889365573,4.62556038,3609.0,3608.9,0.27699]
[1732889365877,0.27698,3609.0,3608.9,0.27699]
[1732889366375,5.43572548,3609.1,3608.7,0.01551]
[1732889366581,4.62594156,3608.8,3608.7,0.01551]
[1732889366779,4.34894156,3609.0,3608.8,0.277]
[1732889366983,3.26151372,3608.9,3608.7,0.01551]
[1732889367177,3.26151372,3608.9,3608.8,0.277]
[1732889367377,3.26155705,3608.9,3608.8,0.277]
[1732889367583,4.62592156,3609.0,3608.9,0.27699]
[1732889367987,0.27698,3609.0,3608.9,0.27699]
[1732889368484,4.62565028,3609.0,3608.9,0.27699]
[1732889368673,5.71270548,3609.1,3609.0,0.27698]
[1732889368873,0.277,3608.9,3608.8,0.27699]
[1732889369078,0.277,3608.8,3608.7,0.01551]
[1732889369388,5.06565481,3608.8,3608.7,0.01551]
[1732889370673,8.27295256,3608.8,3608.7,0.01551]
[1732889370984,9.36042548,3608.8,3608.7,0.01551]
[1732889371179,3.9247,3608.8,3608.7,0.01551]
[1732889371382,9.08202225,3608.8,3608.4,0.27703]
[1732889371585,0.27702,3608.5,3608.4,1.23703]
[1732889372096,4.34756645,3608.6,3608.4,0.96]
[1732889372291,0.27702,3608.6,3608.5,0.27702]
[1732889372585,0.27702,3608.6,3608.5,1.28702]
[1732889372790,4.62458645,3608.6,3608.5,1.28702]
[1732889373087,4.62458645,3608.6,3608.5,1.01]
[1732889373693,6.44245902,3608.6,3607.8,0.4302]
[1732889373991,6.44245902,3608.6,3608.1,0.27704]
[1732889373992,3.53706937,3608.2,3608.1,0.27704]
[1732889374185,0.27704,3608.2,3608.1,0.27704]
[1732889374787,3.26001937,3608.3,3608.2,0.27704]
[1732889375087,3.2078,3608.4,3608.3,0.27704]
[1732889375088,6.74370342,3608.4,3608.3,0.27704]
[1732889375295,5.87422225,3608.8,3608.0,0.69265]
[1732889375296,3.25887342,3608.5,3608.0,0.69265]
[1732889375596,3.25887342,3608.5,3608.4,0.27703]
[1732889375787,3.53589342,3608.6,3608.5,0.27702]
[1732889376285,3.25887342,3608.7,3608.6,0.27701]
[1732889376488,3.6477,3608.8,3608.3,0.4166]
[1732889376489,6.90657342,3608.8,3608.3,0.4166]
[1732889376680,6.46667342,3608.8,3608.7,0.27701]
[1732889376885,3.2078,3608.8,3608.7,0.27701]
[1732889377181,2.17140756,3608.8,3608.7,2.08701]
[1732889377380,2.17140756,3609.0,3608.7,1.81]
[1732889377586,3.25887342,3609.1,3609.0,0.27698]
[1732889377587,2.17140756,3609.1,3609.0,0.27698]
[1732889377893,3.2078,3609.4,3609.0,0.27698]
[1732889377894,2.17140756,3609.2,3609.1,0.27698]
[1732889378194,2.17140756,3609.2,3609.1,41.92358]
[1732889378988,2.17140756,3609.3,3609.2,0.27697]
[1732889379188,3.25887342,3609.4,3609.1,41.2166]
[1732889379489,2.1710663,3609.2,3609.1,42.82698]
[1732889380189,2.1710663,3609.3,3609.1,42.55]
[1732889380388,2.1710663,3609.3,3609.2,0.27697]
[1732889384195,2.1710663,3609.4,3609.3,0.27696]
[1732889385290,3.25887342,3609.4,3609.3,0.27696]
[1732889385792,3.53582342,3609.4,3609.3,0.27696]
[1732889385995,4.6236425,3609.4,3609.3,0.27696]
[1732889386293,4.3466925,3609.4,3609.3,0.27696]
[1732889386685,4.6236425,3609.4,3609.3,0.27696]
[1732889386898,4.62029869,3609.4,3609.3,0.27696]
[1732889387393,0.27695,3609.4,3609.3,0.27696]
[1732889387788,5.43432225,3609.5,3608.9,0.8779]
[1732889387988,3.53477157,3609.1,3609.0,0.27698]
[1732889388186,0.27698,3609.1,3609.0,0.60698]
[1732889388388,4.3437221,3609.1,3609.0,0.60698]
[1732889388585,4.6207021,3609.1,3609.0,0.60698]
[1732889390193,0.27698,3609.1,3609.0,0.33]
[1732889390388,0.27698,3609.1,3609.0,0.60698]
[1732889390893,6.31522225,3609.2,3609.1,0.27698]
[1732889390894,0.8809,3609.2,3609.1,0.27698]
[1732889391101,4.34428805,3609.2,3609.1,0.63698]
[1732889391297,4.34428805,3609.3,3609.1,0.36]
[1732889391497,0.4273,3609.7,3609.1,0.36]
[1732889391498,4.34428805,3609.4,3609.1,0.36]
[1732889391696,3.25814171,3609.2,3609.1,0.63698]
[1732889392392,0.23777351,3609.3,3609.1,5.98168606]
[1732889392592,4.34428805,3609.7,3609.2,0.68947]
[1732889392792,4.34428805,3609.7,3609.6,0.27694]
[1732889392996,3.2078,3609.8,3609.7,0.27693]
[1732889393201,3.48472,3609.8,3609.7,0.27693]
[1732889393802,3.2078,3609.8,3609.7,0.27693]
[1732889394098,3.48472,3609.8,3609.7,0.27693]
[1732889394404,3.2078,3609.8,3609.7,0.27693]
[1732889394605,3.48472,3609.8,3609.7,0.27693]
[1732889395292,4.34428805,3609.9,3609.8,0.27692]
[1732889395495,5.43432225,3610.1,3609.5,0.69236]
[1732889395496,0.27691,3610.0,3609.5,0.69236]
[1732889395702,0.27691,3610.0,3609.9,0.27691]
[1732889396006,0.27693,3609.8,3609.7,0.27692]
[1732889396305,4.62121805,3609.8,3609.7,0.27692]
[1732889396605,0.27693,3609.8,3609.7,0.27692]
[1732889396804,4.34428805,3609.9,3609.3,0.4198]
[1732889396997,4.62120805,3609.9,3609.8,0.27692]
[1732889397198,0.27692,3609.9,3609.8,0.27692]
[1732889398704,5.43432225,3610.0,3609.2,3.6203]
[1732889398901,0.27695,3609.5,3609.4,0.27695]
[1732889399107,0.27695,3609.5,3609.4,1.23695]
[1732889399308,4.77257157,3609.6,3609.4,0.96]
[1732889399602,5.04951157,3609.6,3609.5,0.27694]
[1732889399803,5.43432225,3609.9,3609.6,0.27694]
[1732889399804,4.35037157,3609.7,3609.6,0.27694]
[1732889400004,4.35037157,3609.7,3609.3,0.6924]
[1732889400005,4.35037157,3609.8,3609.3,0.6924]
[1732889400202,3.2078,3610.1,3609.8,0.27692]
[1732889400203,4.35037157,3609.9,3609.8,0.27692]
[1732889400404,4.35037157,3610.0,3609.5,0.69236]
[1732889400606,4.35037157,3610.0,3609.9,0.27691]
[1732889401104,5.43432225,3610.0,3609.9,0.27691]
[1732889401305,5.42605197,3610.0,3609.9,0.27691]
[1732889402206,5.70296197,3610.0,3609.9,0.27691]
[1732889402609,5.42605197,3610.0,3609.9,0.27691]
[1732889402803,0.4273,3610.2,3610.1,0.2769]
[1732889403409,4.77503204,3610.2,3610.1,2.8669]
[1732889403709,4.34773204,3610.3,3610.1,2.59]
[1732889403911,4.34773204,3610.3,3610.2,0.27689]
[1732889404102,4.34773204,3610.3,3610.2,0.82689]
[1732889404407,4.34773204,3610.4,3610.2,0.55]
[1732889404598,4.34773204,3610.4,3610.3,0.27688]
[1732889404806,4.34773204,3610.4,3610.3,2.25688]
[1732889406410,4.34773204,3610.5,3610.3,1.98]
[1732889406611,4.34773204,3610.5,3610.4,0.27688]
[1732889406803,4.34773204,3610.5,3610.4,2.62688]
[1732889407013,4.62460204,3610.5,3610.4,2.62688]
[1732889407401,0.27687,3610.5,3610.4,2.35]
[1732889408212,2.37176257,3610.5,3610.4,2.35]
[1732889408812,2.37176257,3610.5,3610.4,2.62688]
[1732889409007,2.37176257,3610.5,3610.4,2.35]
[1732889409705,3.2078,3610.6,3610.4,2.35]
[1732889409909,7.55026213,3610.6,3610.5,0.27687]
[1732889410106,4.34246213,3610.9,3610.5,8.29956629]
[1732889410308,0.4317,3611.2,3611.1,0.27682]
[1732889410309,4.77416213,3611.2,3611.1,0.27682]
[1732889410513,0.4317,3611.2,3611.1,1.15682]
[1732889413304,0.70851,3611.2,3611.1,1.15682]
[1732889413509,0.4317,3611.2,3611.1,1.15682]
[1732889414308,0.70851,3611.2,3611.1,1.15682]
[1732889414711,0.70851,3611.2,3611.1,0.88]
[1732889415215,0.70851,3611.2,3611.1,1.15682]
[1732889415508,7.55026213,3611.7,3611.6,0.27678]
[1732889415708,3.6462,3611.7,3611.2,0.4459]
[1732889415911,0.27679,3611.6,3611.5,0.27678]
[1732889416311,0.2768,3611.4,3611.3,0.27681]
[1732889416511,0.05,3611.6,3611.5,0.27679]
[1732889416512,0.27679,3611.6,3611.5,0.27679]
[1732889416816,0.09,3611.6,3611.5,0.27679]
[1732889417019,0.09,3611.6,3611.2,0.4459]
[1732889417020,3.6462,3611.7,3611.6,0.27678]
[1732889417213,3.92298,3611.7,3611.6,0.27678]
[1732889417407,3.6462,3611.7,3611.2,0.4459]
[1732889417609,0.27681,3611.3,3611.2,1.66271]
[1732889417912,3.2078,3611.3,3611.2,1.21681]
[1732889418513,3.2078,3611.3,3611.2,0.94]
[1732889418712,0.27681,3611.3,3611.2,0.94]
[1732889419217,7.82707213,3611.3,3611.2,0.94]
[1732889419610,7.61026213,3611.3,3610.1,3.2078]
[1732889419810,0.27687,3610.6,3610.5,0.27686]
[1732889420110,3.2078,3610.8,3610.1,3.2078]
[1732889420309,0.27689,3610.3,3610.2,0.27688]
[1732889420503,3.2078,3610.4,3609.7,40.8]
[1732889420704,0.2769,3610.1,3610.0,0.2769]
[1732889421007,0.27691,3610.0,3609.9,0.2769]
[1732889421614,3.48471,3610.0,3609.9,0.2769]
[1732889421911,0.27693,3609.9,3609.8,0.27692]
[1732889422113,0.72453,3609.9,3609.8,0.27692]
[1732889422511,0.4476,3609.9,3609.8,0.27692]
[1732889424113,0.27692,3609.8,3609.6,0.27694]
[1732889424416,0.27694,3609.7,3609.6,0.88694]
[1732889424916,0.27694,3609.6,3609.5,0.27694]
[1732889425217,0.27694,3609.6,3609.5,0.38]
[1732889425611,0.27693,3609.7,3609.6,0.27694]
[1732889425816,0.4476,3609.9,3609.3,40.8]
[1732889426112,0.27694,3609.6,3609.5,0.27694]
[1732889426314,0.27694,3609.6,3609.5,0.66694]
[1732889426514,0.4476,3609.9,3609.5,0.39]
[1732889426820,0.27693,3609.7,3609.6,0.27693]
[1732889427015,0.4476,3609.9,3609.2,3.2078]
[1732889427016,0.4476,3609.9,3609.3,0.4249]
[1732889427320,0.27693,3609.7,3609.6,0.27693]
[1732889427822,0.27692,3609.8,3609.7,0.27692]
[1732889428025,0.72452,3609.9,3609.8,0.27692]
[1732889428415,0.4476,3609.9,3609.3,0.4249]
[1732889428715,0.27692,3609.8,3609.7,0.27693]
[1732889428920,0.4476,3609.9,3609.6,0.27693]
[1732889429122,0.4476,3609.9,3609.3,0.4249]
[1732889429311,3.2078,3610.0,3609.3,4.1849]
[1732889429516,3.2078,3610.0,3609.9,0.27691]
[1732889431320,3.2078,3610.0,3609.9,0.44691]
[1732889431616,0.72429,3610.3,3610.2,0.27689]
[1732889431816,0.72428,3610.3,3610.2,1.21689]
[1732889432021,0.4474,3610.3,3610.2,1.21689]
[1732889433019,0.27689,3610.2,3610.1,0.2769]
[1732889434234,0.4474,3610.3,3609.7,3.6542]
[1732889434235,0.27691,3610.0,3609.9,0.27691]
[1732889434523,0.2769,3610.1,3610.0,0.2769]
[1732889434822,0.2769,3610.1,3610.0,0.8069]
[1732889435922,0.4474,3610.3,3610.2,0.27689]
[1732889436126,0.4574,3610.3,3610.2,0.27689]
[1732889436423,0.4474,3610.3,3610.2,0.27689]
[1732889436628,3.2078,3610.5,3609.7,4.34652]
[1732889436922,3.2078,3610.5,3610.4,0.27688]
[1732889437424,5.18366213,3611.1,3610.4,0.7]
[1732889437630,0.8412,3611.1,3611.0,0.27683]
[1732889437819,1.11802,3611.1,3611.0,0.27683]
[1732889438225,5.02772837,3611.1,3611.0,0.27683]
[1732889438530,0.4091,3611.1,3611.0,0.27683]
[1732889438926,0.27681,3611.3,3611.1,0.27682]
[1732889438927,4.61861837,3611.3,3611.1,0.27682]
[1732889439127,7.98170837,3611.4,3610.8,0.69211]
[1732889439327,7.54960837,3611.4,3611.3,0.27681]
[1732889439519,7.82640837,3611.4,3611.3,0.27681]
[1732889439725,0.27683,3611.1,3611.0,0.27683]
[1732889440222,4.34180837,3611.3,3610.9,0.4396]
[1732889440428,0.27683,3611.1,3611.0,0.27683]
[1732889440626,4.34180837,3611.2,3610.9,0.4396]
[1732889440825,0.27682,3611.1,3611.0,0.27683]
[1732889441325,0.27682,3611.1,3610.5,0.4417]
[1732889441326,4.34180837,3611.1,3610.5,0.4417]
[1732889441526,2.50399257,3611.5,3610.5,0.3]
[1732889441527,0.27686,3610.6,3610.5,0.3]
[1732889441828,0.27688,3610.4,3610.3,0.27688]
[1732889442026,0.27689,3610.3,3610.2,0.27689]
[1732889442325,0.4037,3610.5,3610.1,0.27689]
[1732889442326,0.2769,3610.2,3610.1,0.27689]
[1732889442924,0.2769,3610.2,3610.0,0.4438]
[1732889442925,4.34143109,3610.4,3610.0,0.4438]
[1732889443227,0.27689,3610.3,3610.2,0.27688]
[1732889444222,4.34143109,3610.4,3610.0,0.4438]
[1732889444427,4.61831109,3610.4,3610.3,0.27688]
[1732889444626,4.74513109,3610.5,3610.3,0.27688]
[1732889444831,0.27688,3610.4,3610.3,0.27688]
[1732889445131,4.61831109,3610.4,3610.3,0.27688]
[1732889445628,4.74513109,3610.5,3610.3,3.2078]
[1732889445829,4.74513109,3610.5,3610.4,0.27688]
[1732889445830,0.68057,3610.5,3610.4,0.27688]
[1732889446031,4.61829109,3610.7,3610.6,0.27686]
[1732889446230,0.27686,3610.7,3610.6,0.27686]
[1732889446623,0.27686,3610.6,3610.5,0.27686]
[1732889447422,4.78233109,3610.9,3610.3,3.2078]
[1732889447622,0.27686,3610.7,3610.6,0.27686]
[1732889448831,0.27687,3610.6,3610.5,0.27686]
[1732889449234,0.27688,3610.5,3610.4,0.27687]
[1732889451031,4.61829109,3610.6,3610.5,0.27687]
[1732889451235,0.69216,3610.6,3610.0,0.4438]
[1732889451421,0.27689,3610.3,3610.2,0.27688]
[1732889452332,1.12259,3610.3,3610.2,0.27688]
[1732889453228,5.46402109,3610.3,3610.2,0.27688]
[1732889453632,5.18713109,3610.3,3609.8,0.413]
[1732889453839,3.53490739,3610.0,3609.9,0.27691]
[1732889454034,3.25799739,3610.0,3609.7,0.27693]
[1732889454235,3.25799739,3610.0,3609.5,3.6173]
[1732889454236,0.27695,3609.6,3609.5,0.27694]
[1732889454534,4.34143109,3609.7,3609.1,44.0078]
[1732889454734,4.34143109,3609.7,3609.5,0.27695]
[1732889454735,3.53520229,3609.6,3609.5,0.27695]
[1732889455131,3.53519229,3609.6,3609.5,0.27695]
[1732889455528,3.96869229,3609.6,3609.5,0.27695]
[1732889456335,3.96869229,3609.6,3609.5,0.38424315]
[1732889456536,3.53519229,3609.6,3609.5,0.10729315]
[1732889456733,0.71044,3609.6,3609.5,0.10729315]
[1732889457629,0.4335,3609.6,3609.5,0.10729315]
[1732889457830,3.69144296,3609.6,3609.5,0.38424315]
[1732889458025,5.04406109,3609.7,3609.5,0.10729315]
[1732889458226,3.15070414,3609.6,3609.5,0.27695]
[1732889458437,4.61834109,3610.0,3609.2,0.69242]
[1732889458729,4.61834109,3610.0,3609.9,0.27691]
[1732889459135,4.34143109,3610.0,3609.9,0.27691]
[1732889459531,4.61834109,3610.0,3609.9,0.27691]
[1732889460231,4.34143109,3610.0,3609.9,0.27691]
[1732889460431,9.75454963,3610.2,3610.0,0.27691]
[1732889460432,4.34143109,3610.1,3610.0,0.27691]
[1732889460632,8.23462109,3610.2,3610.1,0.2769]
[1732889460827,7.95773109,3610.2,3610.1,0.2769]
[1732889461035,4.34143109,3610.3,3609.6,0.69234]
[1732889461332,4.74863109,3610.7,3610.6,0.27686]
[1732889461534,4.1908,3610.9,3610.0,0.69227]
[1732889461535,4.61828109,3610.8,3610.0,0.69227]
[1732889461728,8.53223109,3610.9,3610.1,0.69226]
[1732889462038,8.53223109,3610.9,3610.3,0.69222]
[1732889462234,0.27685,3610.8,3610.7,0.27685]
[1732889462632,7.54923109,3610.9,3610.3,0.69222]
[1732889462937,7.82607109,3610.9,3610.8,0.27685]
[1732889463233,3.2078,3610.9,3610.8,0.27685]
[1732889463433,4.34143109,3611.3,3610.7,3.2078]
[1732889463633,4.61823109,3611.4,3610.8,0.6921]
[1732889463831,0.27681,3611.3,3611.2,0.27681]
[1732889464234,4.34143109,3611.4,3611.3,0.27681]
[1732889464431,4.34143109,3611.5,3611.4,0.2768]
[1732889464737,4.34143109,3611.6,3611.4,0.33]
[1732889465035,4.34143109,3611.6,3611.5,0.27679]
[1732889465036,0.27679,3611.6,3611.5,0.27679]
[1732889465239,4.61821109,3611.7,3611.5,0.27679]
[1732889465438,0.27679,3611.5,3611.1,3.2078]
[1732889465633,0.27679,3611.5,3611.2,0.27681]
[1732889465839,0.27681,3611.3,3611.2,0.56681]
[1732889466035,7.54923109,3611.6,3611.2,0.29]
[1732889466234,7.54923109,3611.6,3611.2,0.27681]
[1732889466235,0.27681,3611.3,3611.2,0.27681]
[1732889466435,7.54923109,3611.6,3610.9,0.4067]
[1732889466731,3.2078,3611.2,3610.3,5.30269257]
[1732889466939,5.19153109,3611.1,3610.4,2.4946]
[1732889467138,0.27685,3610.8,3610.7,0.27685]
[1732889467936,0.27685,3610.7,3610.4,0.4146]
[1732889468139,0.27685,3610.8,3610.7,0.27685]
[1732889468336,4.61828109,3610.8,3610.7,0.27685]
[1732889468841,4.61828109,3610.8,3610.6,0.27686]
[1732889468842,0.27686,3610.7,3610.6,0.27686]
[1732889469036,0.27686,3610.6,3610.5,0.27686]
[1732889469231,4.61829109,3610.7,3610.6,0.27686]
[1732889469431,4.61829109,3610.7,3610.3,0.71543899]
[1732889469639,4.61829109,3610.7,3610.6,0.27686]
[1732889469834,4.61829109,3610.7,3610.3,0.71543899]
[1732889469835,0.27687,3610.5,3610.4,0.27688]
[1732889470035,4.62155824,3610.6,3610.5,0.27687]
[1732889470230,4.34469824,3610.6,3610.3,0.4384]
[1732889470434,4.62154824,3610.7,3610.6,0.27686]
[1732889470638,4.62154824,3610.7,3610.3,0.4384]
[1732889470842,0.27687,3610.5,3610.4,0.27687]
[1732889471040,4.34469824,3610.6,3610.3,0.4384]
[1732889471238,4.62156824,3610.6,3610.4,0.27687]
[1732889471442,4.34469824,3610.5,3610.4,0.27687]
[1732889471944,4.34469824,3610.5,3609.5,5.30269257]
[1732889472131,0.27691,3610.1,3609.6,0.4245]
[1732889472337,4.62160824,3610.1,3610.0,0.27691]
[1732889472537,0.27691,3610.0,3609.7,0.27693]
[1732889472759,0.27691,3610.0,3609.6,0.4245]
[1732889472760,4.62347368,3610.0,3609.9,0.27691]
[1732889473037,4.62347368,3610.0,3609.6,0.4245]
[1732889473038,4.34656368,3610.0,3609.6,0.4245]
[1732889473240,0.27692,3609.9,3609.6,0.4245]
[1732889473438,0.27692,3609.9,3609.8,0.27692]
[1732889473742,4.62348368,3609.9,3609.8,0.27692]
[1732889474045,4.62348368,3609.9,3609.7,0.27693]
[1732889474046,0.27692,3609.8,3609.7,0.27693]
[1732889474233,0.4097,3609.8,3609.7,0.27693]
[1732889474438,0.68662,3609.8,3609.7,0.27693]
[1732889475940,4.75626368,3609.8,3609.5,3.2078]
[1732889476141,4.75626368,3609.8,3609.4,40.8]
[1732889476142,0.27694,3609.6,3609.4,0.27695]
[1732889476346,0.27694,3609.6,3609.4,1.05695]
[1732889476541,0.4097,3609.8,3609.4,1.05695]
[1732889476739,0.4097,3609.8,3609.4,0.27695]
[1732889476943,0.27695,3609.5,3609.4,0.27695]
[1732889478850,0.27694,3609.6,3609.5,0.27694]
[1732889479245,0.27695,3609.5,3609.2,0.27697]
[1732889479451,0.27695,3609.5,3609.4,0.27695]
[1732889480146,4.75626368,3609.8,3609.1,3.6448]
[1732889480351,0.27694,3609.7,3609.6,0.27694]
[1732889481048,0.27694,3609.6,3609.5,0.27694]
[1732889481250,0.27694,3609.7,3609.6,0.27693]
[1732889481440,0.4097,3609.8,3609.1,3.6448]
[1732889481648,0.6597,3609.8,3609.1,7.5948]
[1732889481845,0.27694,3609.6,3609.1,7.5948]
[1732889482045,0.27694,3609.6,3609.5,0.27695]
[1732889482446,0.27694,3609.6,3609.5,0.27694]
[1732889483142,0.27695,3609.5,3609.4,0.27695]
[1732889483342,0.4418,3609.5,3609.1,3.6448]
[1732889483543,0.27695,3609.4,3609.3,0.27696]
[1732889483748,0.4418,3609.5,3609.1,3.6448]
[1732889483944,0.27696,3609.4,3609.3,0.27695]
[1732889484151,3.6496,3609.5,3608.8,0.434]
[1732889484348,0.27698,3609.1,3609.0,0.27698]
[1732889484545,0.27697,3609.2,3609.1,0.27697]
[1732889484755,0.27697,3609.3,3609.2,0.27696]
[1732889487456,0.27697,3609.2,3609.1,0.27697]
[1732889487851,3.6496,3609.5,3608.6,3.89266355]
[1732889487852,2.09489257,3609.4,3608.6,3.2078]
[1732889488154,2.09489257,3609.4,3608.1,0.27705]
[1732889488155,0.27706,3608.2,3608.1,0.27705]
[1732889488453,0.27704,3608.3,3608.2,0.27704]
[1732889489553,0.27706,3608.2,3608.1,0.27705]
[1732889489749,0.27049906,3608.2,3608.1,0.27705]
[1732889489952,3.2078,3608.5,3608.0,3.2078]
[1732889490343,0.27706,3608.1,3608.0,0.27705]
[1732889490855,3.2078,3608.5,3608.1,0.27705]
[1732889490856,0.27705,3608.2,3608.1,0.27705]
[1732889491450,3.2078,3608.5,3607.7,0.8548]
[1732889491653,0.27705,3608.2,3608.1,0.27705]
[1732889492249,3.2078,3608.5,3607.7,0.8548]
[1732889492452,0.27705,3608.2,3608.1,0.27705]
[1732889492850,3.2078,3608.5,3608.2,0.27704]
[1732889492851,0.27704,3608.3,3608.2,0.27704]
[1732889493048,3.2078,3608.5,3607.8,0.69268]
[1732889493252,3.48482,3608.5,3608.4,0.27703]
[1732889493450,3.2078,3608.5,3608.4,0.27703]
[1732889493653,0.27702,3608.6,3608.1,0.69263]
[1732889493654,0.27701,3608.6,3608.1,0.69263]
[1732889493957,0.8744,3608.8,3608.2,0.69262]
[1732889494163,4.34656368,3609.3,3609.2,0.27697]
[1732889494464,0.50840088,3609.7,3609.0,2.09489257]
[1732889494465,0.23147088,3609.7,3609.0,2.09489257]
[1732889494666,0.27693,3609.7,3609.6,0.27694]
[1732889494856,0.27693,3609.7,3609.1,1.10785]
[1732889495057,0.27693,3609.7,3609.6,0.27694]
[1732889495250,0.27693,3609.7,3609.1,1.10785]
[1732889495251,3.2078,3609.9,3609.1,1.10785]
[1732889495563,0.27694,3609.6,3609.5,0.27694]
[1732889496264,0.27693,3609.7,3609.6,0.27694]
[1732889496763,3.2078,3609.9,3609.1,0.4154]
[1732889496764,0.27695,3609.5,3609.1,0.4154]
[1732889497065,3.2078,3609.9,3609.1,0.4154]
[1732889497268,3.2678,3609.9,3609.6,0.27693]
[1732889497662,3.54472,3609.9,3609.8,0.27692]
[1732889497865,3.50472,3609.9,3609.8,0.27692]
[1732889498164,0.27693,3609.7,3609.2,0.96938]
[1732889498363,0.27693,3609.7,3609.6,0.27694]
[1732889499869,0.27695,3609.6,3609.5,0.27694]
[1732889500361,0.27698,3609.2,3609.1,0.27697]
[1732889500561,3.2078,3609.4,3608.5,0.69256]
[1732889500767,0.27698,3609.1,3609.0,0.27697]
[1732889502465,0.4105,3609.2,3608.5,0.69256]
[1732889502664,0.4324,3609.3,3609.2,0.27697]
[1732889503065,1.25994,3609.6,3609.5,0.27695]
[1732889503568,1.28994,3609.6,3609.5,0.27695]
[1732889503872,1.013,3609.6,3609.5,0.27695]
[1732889504068,1.28994,3609.6,3609.5,0.27695]
[1732889504369,1.013,3609.6,3609.5,0.27695]
[1732889504570,0.27695,3609.5,3609.4,0.27695]
[1732889504773,0.08,3609.5,3609.4,0.27695]
[1732889506065,0.35695,3609.5,3609.4,0.27695]
[1732889506671,0.08,3609.5,3609.4,0.27695]
[1732889507168,0.35695,3609.5,3609.4,0.27695]
[1732889507673,0.08,3609.5,3609.4,0.27695]
[1732889507872,3.6183,3609.8,3609.4,0.27695]
[1732889507873,3.2078,3609.8,3609.4,1.12]
[1732889508169,0.4226,3610.5,3609.7,3.2078]
[1732889508362,0.4226,3610.5,3610.4,0.27688]
[1732889508774,0.4239,3610.6,3610.5,0.27687]
[1732889509075,0.27685,3610.7,3610.6,0.27686]
[1732889509276,0.27685,3610.8,3610.7,0.27685]
[1732889509469,0.4239,3610.9,3610.1,4.34274]
[1732889509766,0.4239,3610.9,3610.7,0.27685]
[1732889509767,0.27685,3610.8,3610.7,0.27685]
[1732889509973,0.02,3610.8,3610.1,3.6505]
[1732889510169,0.27687,3610.5,3610.4,0.27687]
[1732889510368,0.02,3610.8,3610.1,3.6505]
[1732889510369,4.34656368,3610.8,3610.1,3.6505]
[1732889510673,0.27685,3610.8,3610.7,0.27685]